[Event "German Bundesliga 2021-22"]
[Site "Germany"]
[Date "2022.04.30"]
[Round "5.3"]
[White "Rozentalis, Eduardas"]
[Black "Johansson, Linus"]
[Result "1-0"]
[ECO "B40"]
[WhiteElo "2542"]
[BlackElo "2473"]
[Annotator "TA"]
[PlyCount "75"]
[EventDate "2022.03.05"]
[EventType "team-tourn"]
[EventCountry "GER"]
[SourceTitle "playchess.com"]
[Source "ChessBase"]
[SourceQuality "1"]
[TimeControl "40/5400+30:1800+30"]

{[%evp 18,75,0,0,0,0,0,0,0,0,31,13,113,87,89,104,185,178,303,305,381,364,347,242,273,245,251,251,243,251,250,250,247,250,235,232,309,302,451,445,429,387,629,628,628,620,596,577,577,572,569,568,914,860,29984,29985,29996,29997,29997,29998]} 1. e4 {[%emt 0:00:00]} e6 {[%emt 0:00:00]} 2. d4 {[%emt 0:00:00]} d5 {[%emt 0:00:00]} 3. Nd2 {[%emt 0:00:00]} c5 {[%emt 0:00:00]} 4. Ngf3 {[%emt 0:00:00]} cxd4 {[%emt 0:00:00]} 5. Nxd4 {[%emt 0:00:00]} Nc6 {[%emt 0:00:00]} 6. Nxc6 {[%emt 0:00:00]} bxc6 {[%emt 0:00:00]} 7. Bd3 {[%emt 0:00:00]} Nf6 {[%emt 0:00:00][%cal Bg8f6,Bf6d7,Bd7c5][%mdl 32]} 8. O-O {[%emt 0:03:47]} Be7 {[%emt 0:03:01]} 9. e5 {[%emt 0:06:19]} Nd7 {[%emt 0:00:29]} 10. Nf3 {[%emt 0:00:05]} Qc7 {[%emt 0:10:40] B40: Sicilian: 2...e6, Unusual lines.} 11. Re1 {[%emt 0:01:13] [#]} Nc5 $146 {[%emt 0:04:34]} ({Predecessor:} 11... c5 12. c3 Rb8 13. Qc2 h6 14. Bd2 g5 15. h3 c4 16. Bf1 Qb6 17. b4 cxb3 18. axb3 {1-0 (40) Plotnikov,V-Herdocia,F Los Angeles 1995}) 12. Be3 {[%emt 0:09:36]} a5 {[%emt 0:03:48] The position is equal.} 13. Rc1 {[%emt 0:11:37]} h6 {[%emt 0:28:07]} 14. Nd4 {[%emt 0:07:42]} Ba6 {[%emt 0:28:27]} (14... Bd7 $11) 15. Bxa6 {[%emt 0:07:12]} Rxa6 {[%emt 0:00:28]} 16. c4 {[%emt 0:01:00] And now cxd5 would win.} Qd7 {[%emt 0:04:26] [#]} (16... Qb7 $16) 17. cxd5 $1 $18 {[%emt 0:07:56]} Qxd5 {[%emt 0:01:03]} (17... cxd5 {keeps fighting.} 18. Re2 O-O) 18. Qe2 {[%emt 0:00:53]} Ra8 {[%emt 0:06:07][%cal Ba6a8,Ba8d8,Bd8d5][%mdl 32]} 19. Red1 {[%emt 0:01:55][%cal Od4f5]} Rd8 {[%emt 0:01:22]} 20. b3 {[%emt 0:15:09][%cal Od4b5] Hoping for Nb5!} O-O {[%emt 0:03:40] [#]} 21. Nf5 $1 {[%emt 0:05:24][%mdl 512]} exf5 {[%emt 0:00:16]} 22. Rxd5 {[%emt 0:00:07]} Rxd5 {[%emt 0:00:04]} 23. Bxc5 {[%emt 0:02:49]} Bxc5 {[%emt 0:00:13]} 24. e6 {[%emt 0:00:31]} Re8 {[%emt 0:01:44]} 25. exf7+ {[%emt 0:03:03]} Kxf7 {[%emt 0:00:02]} 26. Qh5+ {[%emt 0:02:39]} ({Don't take} 26. Qa6 Ba3 27. Rf1 (27. Qxc6 Rc5 $17) 27... Re6) 26... g6 {[%emt 0:01:18]} 27. Qxh6 {[%emt 0:01:01]} Re2 {[%emt 0:01:50]} (27... Bf8 $142 28. Qf4 (28. Qh7+ Bg7 $18) 28... Bd6) 28. Qh7+ {[%emt 0:03:58]} Kf6 {[%emt 0:00:06][%cal Oe2c2]} 29. h4 {[%emt 0:00:20]} Rxa2 $2 {[%emt 0:02:36]} (29... Rde5 30. Qh8+ Kf7) 30. h5 {[%emt 0:04:07]} gxh5 {[%emt 0:00:08]} 31. Qh6+ {[%emt 0:00:04]} Kf7 {[%emt 0:00:09]} 32. Qxc6 {[%emt 0:00:54]} Bxf2+ {[%emt 0:00:20]} 33. Kf1 {[%emt 0:00:25]} Rad2 {[%emt 0:01:23]} 34. Qb7+ {[%emt 0:01:12]} Ke6 {[%emt 0:00:10]} 35. Rc6+ {[%emt 0:00:44]} Ke5 {[%emt 0:00:13]} 36. Qc7+ {[%emt 0:01:26] White mates.} Kd4 {[%emt 0:01:09]} 37. Qf4+ {[%emt 0:00:13]} Kd3 {[%emt 0:00:07]} 38. Qc4+ {[%emt 0:00:11] Black did not feel at home in the position after the opening.  Weighted Error Value: White=0.07 (flawless) /Black=0.64} 1-0

[Event "German Bundesliga 2021-22"]
[Site "Germany"]
[Date "2022.04.30"]
[Round "5.4"]
[White "Tari, Aryan"]
[Black "Meshkovs, Nikita"]
[Result "1-0"]
[ECO "B31"]
[WhiteElo "2650"]
[BlackElo "2559"]
[Annotator "TA"]
[PlyCount "73"]
[EventDate "2022.03.05"]
[EventType "team-tourn"]
[EventCountry "GER"]
[SourceTitle "playchess.com"]
[Source "ChessBase"]
[SourceQuality "1"]
[TimeControl "40/5400+30:1800+30"]

{[%evp 19,73,0,0,0,21,0,36,24,27,18,29,27,31,0,0,17,5,23,59,49,61,9,68,64,58,53,92,78,72,24,91,87,148,137,152,128,324,225,227,231,224,226,207,53,53,102,6236,5306,5389,5289,29985,29986,29986,29987,29991,29992]} 1. e4 {[%emt 0:00:00]} c5 {[%emt 0:00:00]} 2. Nf3 {[%emt 0:00:00]} Nc6 {[%emt 0:00:00]} 3. Bb5 {[%emt 0:00:00]} g6 {[%emt 0:00:00]} 4. O-O {[%emt 0:00:00]} Bg7 {[%emt 0:00:00]} 5. c3 {[%emt 0:00:00]} Nf6 {[%emt 0:00:00]} 6. Re1 {[%emt 0:00:00]} O-O {[%emt 0:00:00]} 7. d4 {[%emt 0:00:00]} cxd4 {[%emt 0:00:00]} 8. cxd4 {[%emt 0:00:00]} d5 {[%emt 0:00:00]} 9. e5 {[%emt 0:00:00]} Ne4 {[%emt 0:00:00]} 10. Bxc6 {[%emt 0:00:00]} bxc6 {[%emt 0:00:00]} 11. Be3 $1 {[%emt 0:00:00][%mdl 4] is now more promising than 11.Nbd2. B31: Sicilian: 2...Nc6 3 Bb5 g6.} Qb6 {[%emt 0:09:02]} 12. Qc1 {[%emt 0:00:00]} Rb8 {[%emt 0:20:14]} 13. b3 {[%emt 0:00:00] White is slightly better.} Qa5 {[%emt 0:00:26]} 14. Nbd2 {[%emt 0:08:06]} Bf5 {[%emt 0:17:55] [#]} 15. h3 $146 {[%emt 0:23:20]} ({Predecessor:} 15. Nxe4 Bxe4 16. Nd2 Bf5 17. Qb2 Rfc8 18. Rec1 Bf8 19. Rc3 Qa6 20. Nf3 Be4 21. Ne1 {1-0 (39) Smeets,J (2585)-Mamedov,R (2659) Wijk aan Zee 2020}) 15... Rfc8 {[%emt 0:04:09]} 16. Nxe4 {[%emt 0:04:01]} (16. g4 $5 {[%cal Rg4f5]} Be6 17. Nxe4 dxe4 18. Qd2 Qxd2 19. Nxd2 $11) 16... Bxe4 {[%emt 0:02:16]} 17. Ng5 {[%emt 0:04:02]} c5 {[%emt 0:03:52] Threatens to win with ...cxd4.} 18. Qd1 {[%emt 0:08:14]} ({Don't play} 18. Nxe4 cxd4 19. Qd2 Qxd2 20. Nxd2 dxe3 21. Rxe3 Rc2 $17) 18... c4 {[%emt 0:08:24]} 19. Nxe4 {[%emt 0:17:34]} dxe4 {[%emt 0:00:11]} 20. Bg5 {[%emt 0:02:53]} ({White should try} 20. bxc4 $14 Rxc4 21. Rb1) 20... Qd5 {[%emt 0:07:10]} (20... c3 $11) 21. Bxe7 $14 {[%emt 0:02:46]} cxb3 {[%emt 0:00:20]} 22. axb3 {[%emt 0:00:38]} Rxb3 {[%emt 0:01:29]} 23. Rxa7 {[%emt 0:03:25] And now Qg4 would win.} h5 {[%emt 0:02:04] Prevents Qg4.} 24. Ra3 {[%emt 0:06:09]} (24. Bc5 $16) 24... Rb2 {[%emt 0:04:05]} (24... Rxa3 $11 {keeps the balance.} 25. Bxa3 Rc4) 25. Bg5 $1 $16 {[%emt 0:01:58]} Rcc2 {[%emt 0:04:24] [#]} (25... Kh7 $142) 26. Rf1 $1 {[%emt 0:02:56]} Bf8 {[%emt 0:10:09]} 27. Ra1 {[%emt 0:01:59]} Qc4 $2 {[%emt 0:02:13]} (27... Bb4 $16) 28. Be3 {[%emt 0:01:47]} Kh7 {[%emt 0:00:24] [#]} 29. Rc1 $1 {[%emt 0:02:14]} Bh6 {[%emt 0:01:43]} 30. Rxc2 {[%emt 0:00:46]} Rxc2 {[%emt 0:00:01]} 31. d5 $2 {[%emt 0:03:01]} (31. Qb1 $18) 31... Bxe3 $1 $14 {[%emt 0:04:29]} 32. fxe3 {[%emt 0:00:01] KQR-KQR} Kg7 $2 {[%emt 0:00:17][%mdl 8192]} (32... Kg8 $16 33. Qd4 Qxd4 34. exd4 e3) 33. e6 $18 {[%emt 0:02:02][%cal Be5e6,Be6e7][%mdl 32] White threatens e7 and mate.} f5 {[%emt 0:01:07]} 34. d6 {[%emt 0:02:49] Threatening mate with d7.} Qa2 {[%emt 0:00:23]} 35. Qa1+ {[%emt 0:00:01] White mates.} Qxa1 {[%emt 0:00:40]} 36. Rxa1 {[%emt 0:00:02]} Rd2 {[%emt 0:00:22]} 37. e7 {[%emt 0:00:17] Weighted Error Value: White=0.26 (precise) /Black=0.42} 1-0

[Event "German Bundesliga 2021-22"]
[Site "Germany"]
[Date "2022.04.30"]
[Round "5.4"]
[White "Gustafsson, Jan"]
[Black "Tomczak, Jacek"]
[Result "1/2-1/2"]
[ECO "D80"]
[WhiteElo "2643"]
[BlackElo "2584"]
[Annotator "TA"]
[PlyCount "51"]
[EventDate "2022.03.05"]
[EventType "team-tourn"]
[EventCountry "GER"]
[SourceTitle "playchess.com"]
[Source "ChessBase"]
[SourceQuality "1"]
[TimeControl "40/5400+30:1800+30"]

{[%evp 23,51,15,24,17,25,28,26,15,34,35,25,31,30,34,27,38,31,20,34,33,31,0,2,0,0,0,0,0,0,0]} 1. d4 {[%emt 0:00:00]} Nf6 {[%emt 0:00:00]} 2. c4 {[%emt 0:00:00]} g6 {[%emt 0:00:00]} 3. Nc3 {[%emt 0:00:00]} d5 {[%emt 0:00:00]} 4. Nf3 {[%emt 0:00:00]} Bg7 {[%emt 0:00:00]} 5. Bg5 {[%emt 0:00:00]} Ne4 {[%emt 0:00:00]} 6. Bf4 {[%emt 0:00:00]} Nxc3 {[%emt 0:00:00]} 7. bxc3 {[%emt 0:00:00]} c5 {[%emt 0:00:00]} 8. e3 {[%emt 0:00:00]} O-O {[%emt 0:05:30]} 9. cxd5 {[%emt 0:00:00]} cxd4 {[%emt 0:00:30]} 10. cxd4 {[%emt 0:00:00]} Qxd5 {[%emt 0:00:30]} 11. Be2 {[%emt 0:00:00]} Nc6 {[%emt 0:06:30]} 12. O-O {[%emt 0:00:00]} Bf5 {[%emt 0:00:30]} 13. Qa4 {[%emt 0:00:00] D80: Grünfeld: Unusual White 4th moves and 4 Bg5.} Qa5 {[%emt 0:03:30]} 14. Qxa5 $1 {[%emt 0:00:30] 14.Qxa5 is better than 14.Qb3.} Nxa5 {[%emt 0:00:00]} 15. Nd2 {[%emt 0:00:30] White has an edge.} Rfc8 {[%emt 0:02:00]} 16. g4 {[%emt 0:02:30]} Bd7 {[%emt 0:14:30]} 17. Rfc1 {[%emt 0:25:30] Against Rc2} Rxc1+ {[%emt 0:12:30]} 18. Rxc1 {[%emt 0:00:30]} Rc8 $1 {[%emt 0:01:30]} 19. Rxc8+ {[%emt 0:01:30]} Bxc8 {[%emt 0:00:00]} 20. d5 {[%emt 0:07:30]} Bc3 {[%emt 0:15:00]} 21. Ne4 {[%emt 0:00:30]} Bb4 {[%emt 0:01:30][%cal Ob7b5] [#]} 22. Bc7 $146 {[%emt 0:05:30][%cal Oa2a3] [#] And now a3! would win.} (22. Bb8 $5 {[%cal Rb8a7]}) ({Predecessor:} 22. Bb8 f5 23. Ng3 Bc5 24. gxf5 gxf5 25. Bd3 e6 26. e4 fxe4 27. Nxe4 Bd4 28. Nd6 {1-0 (50) Sargissian,G (2689)-Ivic,V (2558) Moscow 2020}) 22... b6 {[%emt 0:06:30] The position is equal.} 23. Bb8 {[%emt 0:19:30]} Bb7 {[%emt 0:01:30]} 24. Bxa7 {[%emt 0:02:30]} Bxd5 {[%emt 0:01:30]} 25. Bf3 {[%emt 0:00:30][%cal Oe4f6]} Bxa2 {[%emt 0:01:30]} 26. Bxb6 {[%emt 0:00:30] Weighted Error Value: White=0.04 (flawless) /Black=0.03 (flawless)} 1/2-1/2

[Event "German Bundesliga 2021-22"]
[Site "Germany"]
[Date "2022.04.30"]
[Round "5.4"]
[White "Berelowitsch, Alexander"]
[Black "Hracek, Zbynek"]
[Result "1/2-1/2"]
[ECO "B92"]
[WhiteElo "2504"]
[BlackElo "2565"]
[Annotator "TA"]
[PlyCount "60"]
[EventDate "2022.03.05"]
[EventType "team-tourn"]
[EventCountry "GER"]
[SourceTitle "playchess.com"]
[Source "ChessBase"]
[SourceQuality "1"]
[TimeControl "40/5400+30:1800+30"]

{[%evp 15,60,7,15,3,4,0,5,5,11,0,12,5,22,0,0,0,0,0,0,0,0,0,0,0,0,0,0,0,0,0,0,0,0,0,0,0,0,0,0,0,0,0,0,0,0,0,0]} 1. e4 {[%emt 0:00:00]} c5 {[%emt 0:00:00]} 2. Nf3 {[%emt 0:00:00][%cal Bg1f3,Bf3d4,Bd4b3][%mdl 32]} d6 {[%emt 0:00:00]} 3. d4 {[%emt 0:00:00]} cxd4 {[%emt 0:00:00]} 4. Nxd4 {[%emt 0:00:00]} Nf6 {[%emt 0:00:00]} 5. Nc3 {[%emt 0:00:00]} a6 {[%emt 0:00:00]} 6. Be2 {[%emt 0:00:00]} e5 {[%emt 0:00:00]} 7. Nb3 {[%emt 0:00:00]} Be6 {[%emt 0:00:00]} 8. O-O {[%emt 0:00:00]} Be7 {[%emt 0:00:00] The position is equal.} 9. Bf3 {[%emt 0:00:00] B92: Sicilian Najdorf: 6 Be2.} Nbd7 {[%emt 0:00:51]} 10. Re1 {[%emt 0:00:40]} O-O {[%emt 0:01:50]} 11. a4 {[%emt 0:08:00]} Qb8 {[%emt 0:08:15]} 12. a5 {[%emt 0:12:31]} Rc8 {[%emt 0:11:12]} 13. Be3 {[%emt 0:05:59]} Bd8 {[%emt 0:10:59]} 14. Qd2 {[%emt 0:11:23]} b5 {[%emt 0:05:22]} 15. axb6 {[%emt 0:02:56]} Bxb6 {[%emt 0:00:48] [#]} 16. Ra3 $146 {[%emt 0:09:29]} ({Predecessor:} 16. Bxb6 Nxb6 17. Na5 Rc5 18. Nd1 d5 19. b4 Rc8 20. exd5 Bxd5 21. Bxd5 Nbxd5 22. Rb1 {1-0 (38) Zawadzka,J (2391)-Sadzikowski,D (2448) Lublin 2013}) 16... a5 {[%emt 0:14:28]} 17. Bxb6 {[%emt 0:14:11]} Nxb6 {[%emt 0:26:36]} 18. Rxa5 {[%emt 0:04:44]} ({Don't blunder} 18. Nxa5 $2 {[#]} Rxa5 $1 {[%mdl 512]} 19. Rxa5 Nc4 $19) 18... Nc4 {[%emt 0:00:16][%csl LRa5,LRb2,LRd2]} 19. Rxa8 {[%emt 0:00:06]} Qxa8 {[%emt 0:00:55]} 20. Qc1 {[%emt 0:02:00]} Qc6 {[%emt 0:00:19][%cal Oc4b2]} 21. Na2 {[%emt 0:07:42]} Qb6 {[%emt 0:05:43]} 22. Nc3 {[%emt 0:01:42]} Qb4 {[%emt 0:01:04][%cal Oc4b2]} 23. Na2 $1 {[%emt 0:00:24]} Qb6 {[%emt 0:02:09]} 24. Nc3 {[%emt 0:06:53]} g6 {[%emt 0:05:53]} 25. h3 {[%emt 0:07:24]} Kg7 {[%emt 0:00:10]} 26. Rd1 {[%emt 0:00:17]} Qb4 {[%emt 0:02:51][%cal Oc4b2]} 27. Na2 {[%emt 0:01:31]} Qa4 {[%emt 0:00:50]} 28. Nc3 {[%emt 0:00:13]} Qb4 {[%emt 0:00:03][%cal Oc4b2]} 29. Na2 {[%emt 0:02:28]} Qa4 {[%emt 0:01:04]} 30. Nc3 {[%emt 0:00:07]} Qb4 {An interesting draw.  Weighted Error Value: White=0.02 (flawless) /Black=0.01 (flawless)} 1/2-1/2

[Event "German Bundesliga 2021-22"]
[Site "Germany"]
[Date "2022.04.30"]
[Round "5.4"]
[White "Lokander, Martin"]
[Black "Arnaudov, G. Petar"]
[Result "1-0"]
[ECO "E21"]
[WhiteElo "2473"]
[BlackElo "2469"]
[Annotator "TA"]
[PlyCount "135"]
[EventDate "2022.03.05"]
[EventType "team-tourn"]
[EventCountry "GER"]
[SourceTitle "playchess.com"]
[Source "ChessBase"]
[SourceQuality "1"]
[TimeControl "40/5400+30:1800+30"]

{[%evp 19,135,24,24,20,25,17,36,38,34,41,43,35,42,34,34,20,25,12,47,31,124,113,156,155,147,151,190,140,265,259,429,419,494,487,499,496,477,477,470,383,463,457,496,494,481,406,398,396,426,376,395,404,416,420,420,395,408,404,403,390,362,221,220,218,205,210,200,186,235,259,345,224,364,338,588,882,29964,29966,29966,29967,29966,29969,29969,29970,29974,29975,29976,29977,29978,29979,29979,29980,29981,29980,29980,29978,29982,29983,29983,29983,29983,29982,29982,0,29983,29984,29984,29985,29985,29986,29985,29984,29986,29983,29983,29984,29984,29985]} 1. d4 {[%emt 0:00:00]} Nf6 {[%emt 0:00:00]} 2. c4 {[%emt 0:00:00]} e6 {[%emt 0:00:00]} 3. Nf3 {[%emt 0:00:00]} Bb4+ {[%emt 0:00:00]} 4. Nc3 {[%emt 0:00:00]} b6 {[%emt 0:00:00]} 5. Bd2 {[%emt 0:00:00]} Bb7 {[%emt 0:00:00]} 6. e3 {[%emt 0:00:00]} O-O {[%emt 0:00:00]} 7. Bd3 {[%emt 0:00:00]} d6 {[%emt 0:00:00]} 8. O-O {[%emt 0:00:00]} Nbd7 {[%emt 0:00:00]} 9. a3 {[%emt 0:00:00]} Bxc3 {[%emt 0:00:00]} 10. Bxc3 {[%emt 0:00:00]} Ne4 {[%emt 0:00:45]} 11. Be1 {[%emt 0:03:10] E21: Nimzo-Indian: 4 Nf3.} f5 {[%emt 0:04:26]} 12. Nd2 {[%emt 0:00:27]} Qg5 {[%emt 0:02:34] aiming for ...Nxd2.} 13. f4 {[%emt 0:03:05] White is slightly better.} Qg6 {[%emt 0:01:26][%cal Oe4c3] White must now prevent ...Nc3!} 14. Nxe4 {[%emt 0:01:15]} Bxe4 {[%emt 0:01:44]} 15. Bxe4 {[%emt 0:00:51]} fxe4 {[%emt 0:00:07]} 16. Qa4 {[%emt 0:01:31]} Nf6 {[%emt 0:05:46]} 17. Qc6 {[%emt 0:04:06] [#]} Qf7 $146 {[%emt 0:12:43]} ({Predecessor:} 17... Rac8 18. Bh4 Ng4 19. Rae1 Qh5 20. Bg3 Nf6 21. h3 Qe8 22. Qxe8 Rcxe8 23. Bh4 Nd7 {0-1 (62) Petkov,M (2315)-Amin,B (2686) Chess.com INT 2020}) 18. b4 {[%emt 0:16:57]} d5 {[%emt 0:03:18]} 19. Bh4 {[%emt 0:03:34] Bxf6 is the strong threat.} Ng4 {[%emt 0:04:02] White now steadily converts the win.} (19... Qe8 $1 $14 20. Qxe8 (20. Qxc7 Ng4 $11) 20... Nxe8) 20. Rae1 $16 {[%emt 0:05:44]} Nh6 {[%emt 0:00:33]} 21. cxd5 {[%emt 0:01:50]} exd5 {[%emt 0:00:30]} 22. f5 $1 {[%emt 0:05:36] White is more active.} Rae8 {[%emt 0:05:16]} (22... Nxf5 $2 23. g4 Qg6 24. Qxg6 (24. Qxd5+ Kh8 $17) 24... hxg6 25. gxf5 $18) 23. Bg5 {[%emt 0:16:02]} (23. f6 $6 Re6 24. Qb7 (24. Qxd5 Rxf6 25. Qxf7+ R6xf7 $11) 24... g6 $16) ({White should play} 23. Rf4 $18) 23... Nxf5 {[%emt 0:17:05]} (23... Ng4 $16 {was necessary.}) 24. g4 $18 {[%emt 0:04:15]} Re6 $2 {[%emt 0:05:44]} (24... Nxd4 {was worth a try.} 25. exd4 Qe6 26. Rxf8+ (26. Qxc7 Qxg4+ 27. Qg3 Qxg3+ 28. hxg3 Rc8 $16) 26... Kxf8 27. Rf1+ (27. Qxc7 Qxg4+ 28. Qg3 Qxg3+ 29. hxg3 Kf7 $16) 27... Kg8 28. Qxe6+ (28. Qxc7 h6 $18) 28... Rxe6) 25. Qxd5 {[%emt 0:00:55][%mdl 64] Pin} Ne7 {[%emt 0:05:41]} 26. Qd7 {[%emt 0:00:44]} (26. Rxf7 Nxd5 27. Rxf8+ Kxf8 $15) 26... Rf6 {[%emt 0:00:23]} 27. Bxf6 {[%emt 0:00:25]} gxf6 {[%emt 0:00:06]} 28. Qxc7 {[%emt 0:01:17]} Qe6 {[%emt 0:00:05]} 29. Qf4 {[%emt 0:02:15]} Rf7 {[%emt 0:00:29]} 30. Kh1 {[%emt 0:00:52]} Kg7 {[%emt 0:00:51]} 31. Rc1 {[%emt 0:02:07]} Nd5 {[%emt 0:00:12]} 32. Qf5 {[%emt 0:02:11]} Qxf5 {[%emt 0:06:36]} 33. Rxf5 {[%emt 0:00:05]} ({Don't take} 33. gxf5 Nxe3 34. Rf4 Rd7 35. Rg1+ (35. Rxe4 Nxf5 36. Kg2 h6 $18) 35... Kf7 $18) 33... Rd7 {[%emt 0:00:20] [#]} 34. Rxd5 {[%emt 0:02:52]} Rxd5 {[%emt 0:00:11][%mdl 4096] Endgame KR-KR} 35. Rc7+ {[%emt 0:00:02]} Kg6 {[%emt 0:00:15]} 36. Rxa7 {[%emt 0:00:55]} h5 {[%emt 0:00:35]} 37. Re7 {[%emt 0:01:24]} hxg4 {[%emt 0:02:57]} 38. Rxe4 {[%emt 0:00:14]} Kg5 {[%emt 0:01:01]} 39. Re6 {[%emt 0:01:15]} Rd8 {[%emt 0:00:46]} 40. Rc6 {[%emt 0:01:55]} Ra8 {[%emt 0:00:57]} 41. Rc3 {[%emt 0:30:53]} (41. Rxb6 Rxa3 42. Rb5+ Kg6 $14) 41... Kf5 {[%emt 0:32:18]} 42. Kg2 {[%emt 0:00:40]} Ke4 {[%emt 0:00:51] [#]} 43. Rc6 $1 {[%emt 0:02:02]} Kxe3 {[%emt 0:01:54]} (43... Kf5 {might work better.}) 44. Rxf6 {[%emt 0:01:40]} b5 {[%emt 0:08:32]} 45. Kg3 {[%emt 0:12:48]} Kxd4 {[%emt 0:02:42]} (45... Rxa3 $142 46. d5 (46. Kxg4 Ra4 $16) 46... Rd3) 46. Kxg4 {[%emt 0:00:17]} Rxa3 $2 {[%emt 0:00:38]} (46... Rg8+ 47. Kf3 Ra8) 47. h4 {[%emt 0:00:10] Threatens to win with h5.} Kc3 {[%emt 0:02:53] [#]} 48. Rf4 $1 {[%emt 0:00:53]} ({Inferior is} 48. h5 Kxb4 49. h6 Ra7 $11) 48... Ra8 {[%emt 0:00:00]} 49. h5 {[%emt 0:00:00]} Rg8+ {[%emt 0:00:00]} 50. Kf5 {[%emt 0:00:00]} Rf8+ {[%emt 0:00:00]} 51. Ke5 {[%emt 0:00:00]} Rh8 {[%emt 0:00:00]} 52. Rh4 {[%emt 0:00:00]} Rh6 {[%emt 0:00:00]} 53. Kf5 {[%emt 0:00:00]} Kb3 {[%emt 0:00:00]} 54. Kg5 {[%emt 0:00:00]} Rh8 {[%emt 0:00:00]} 55. h6 {[%emt 0:00:00]} Ka4 {[%emt 0:00:00]} 56. Kg6 {[%emt 0:00:00]} Rg8+ {[%emt 0:00:00]} 57. Kf7 {[%emt 0:00:00]} Ra8 {[%emt 0:00:00]} 58. h7 {[%emt 0:00:00]} Kb3 {[%emt 0:00:00]} 59. Kg7 {[%emt 0:00:00]} Ra7+ {[%emt 0:00:00]} 60. Kg6 {[%emt 0:00:00]} Ra8 {[%emt 0:00:00]} 61. Kg7 {[%emt 0:00:00]} Ra7+ {[%emt 0:00:00]} 62. Kf6 {[%emt 0:00:00] White mates.} Ra8 {[%emt 0:00:00]} 63. h8=Q {[%emt 0:00:00]} Rxh8 {[%emt 0:00:00]} 64. Rxh8 {[%emt 0:00:00]} Kxb4 {[%emt 0:00:00]} 65. Ke5 {[%emt 0:00:00]} Kc3 {[%emt 0:00:00]} 66. Rc8+ {[%emt 0:00:00]} Kd3 {[%emt 0:00:00]} 67. Rb8 {[%emt 0:00:00]} Kc4 {[%emt 0:00:00]} 68. Ke4 {[%emt 0:00:00] Weighted Error Value: White=0.13 (very precise) /Black=0.39} 1-0

[Event "German Bundesliga 2021-22"]
[Site "Germany"]
[Date "2022.04.30"]
[Round "5.5"]
[White "Pruijssers, Roeland"]
[Black "Sorensen, Hampus"]
[Result "1-0"]
[ECO "B24"]
[WhiteElo "2565"]
[BlackElo "2367"]
[Annotator "TA"]
[PlyCount "79"]
[EventDate "2022.03.05"]
[EventType "team-tourn"]
[EventCountry "GER"]
[SourceTitle "playchess.com"]
[Source "ChessBase"]
[SourceQuality "1"]
[TimeControl "40/5400+30:1800+30"]

{[%evp 21,79,16,16,0,0,0,0,-12,-12,-15,8,12,25,31,28,23,35,35,40,26,42,16,94,85,71,84,70,14,19,0,0,0,0,0,0,0,0,0,0,0,0,0,10,13,16,4,5,4,57,79,282,159,113,0,277,0,123,110,460,467]} 1. e4 {[%emt 0:00:00]} c5 {[%emt 0:00:00]} 2. Nc3 {[%emt 0:00:00]} Nc6 {[%emt 0:00:00]} 3. g3 {[%emt 0:00:00]} g6 {[%emt 0:00:00]} 4. Bg2 {[%emt 0:00:00]} Bg7 {[%emt 0:00:00]} 5. d3 {[%emt 0:00:00]} e6 {[%emt 0:00:00]} 6. Be3 {[%emt 0:00:00]} d6 {[%emt 0:00:00]} 7. Qd2 {[%emt 0:00:00]} Rb8 {[%emt 0:00:00]} 8. Nge2 {[%emt 0:08:31]} b5 {[%emt 0:01:01]} 9. a3 {[%emt 0:04:54]} Nd4 {[%emt 0:05:27]} 10. O-O {[%emt 0:00:46]} Ne7 {[%emt 0:03:55]} 11. Bh6 {[%emt 0:08:50]} O-O {[%emt 0:17:49]} 12. Nxd4 {[%emt 0:05:23] B26: Closed Sicilian: 3 g3, lines with early Be3.} cxd4 {[%emt 0:00:24]} 13. Ne2 {[%emt 0:01:57]} e5 {[%emt 0:00:31] [#]} 14. c3 $146 {[%emt 0:11:05] The position is equal.} ({Predecessor:} 14. Rac1 a5 15. c3 dxc3 16. Rxc3 b4 17. Rc2 bxa3 18. bxa3 Ba6 {½-½ (18) Beyer Lecaros,A (2256)-Corti,H Argentina 2000}) 14... dxc3 {[%emt 0:01:51]} (14... Bxh6 {seems wilder.} 15. Qxh6 dxc3 16. bxc3 Be6) 15. Nxc3 {[%emt 0:00:08]} Be6 {[%emt 0:05:38]} 16. Be3 {[%emt 0:11:25]} Qd7 {[%emt 0:09:05]} 17. d4 {[%emt 0:03:57]} exd4 {[%emt 0:05:45]} 18. Bxd4 {[%emt 0:00:20]} Bxd4 {[%emt 0:01:01]} 19. Qxd4 {[%emt 0:00:07]} Rfd8 {[%emt 0:06:36]} 20. f4 {[%emt 0:04:27][%cal Bf2f4,Bf4f5][%mdl 32]} Nc6 {[%emt 0:09:22]} 21. Qd2 {[%emt 0:04:55]} b4 {[%emt 0:02:31]} (21... a5 $11 {keeps the balance.}) 22. axb4 $16 {[%emt 0:00:37]} Nxb4 {[%emt 0:00:18]} 23. f5 {[%emt 0:04:56]} Bc4 {[%emt 0:01:06]} 24. Qh6 {[%emt 0:16:35]} (24. Rf2 $14) 24... Qe7 {[%emt 0:08:40]} (24... Bxf1 $2 {leads to mate.} 25. f6 Bxg2 26. Qg7#) 25. Rf4 {[%emt 0:00:21] Threatens to win with Rh4.} Qf8 $1 {[%emt 0:02:31]} 26. Qxf8+ {[%emt 0:04:33]} Rxf8 {[%emt 0:05:24]} 27. e5 {[%emt 0:01:22]} d5 {[%emt 0:00:04]} 28. Rxa7 {[%emt 0:03:06]} Nc6 {[%emt 0:04:44]} 29. Rc7 {[%emt 0:01:39]} Nxe5 {[%emt 0:00:13]} 30. Nxd5 {[%emt 0:00:12]} Bxd5 {[%emt 0:00:50]} 31. Bxd5 {[%emt 0:00:02] Strongly threatening fxg6.} Rfd8 {[%emt 0:03:29]} 32. Bb7 $36 {[%emt 0:00:25][%mdl 2048] White is more active.} g5 {[%emt 0:06:44]} 33. Rf2 {[%emt 0:01:05]} Rd1+ {[%emt 0:00:44]} 34. Kg2 {[%emt 0:00:11]} Nd3 {[%emt 0:00:58]} (34... Rd6 $11) 35. Re2 $14 {[%emt 0:00:15]} Rb1 $2 {[%emt 0:00:43]} (35... Kg7 $16 {was necessary.}) 36. Be4 {[%emt 0:01:40]} (36. Ba6 $18 Rc1 37. Bc4) 36... Rd1 $16 {[%emt 0:00:14] [#]} 37. Bb7 $2 {[%emt 0:03:15]} (37. f6 $1 $16) 37... Rb1 $1 $18 {[%emt 0:00:08][%cal Od3e5]} 38. Be4 {[%emt 0:00:55]} (38. Ba6 $18 {and White stays clearly on top.} Rc1 39. Bc4) 38... Rd1 $16 {[%emt 0:00:02] [#]} 39. f6 $1 {[%emt 0:00:58]} Nxb2 $2 {[%emt 0:00:45][%mdl 8192]} (39... Nb4 $16 40. Bf3 Nd5) 40. Rb7 {[%emt 0:00:23] Weighted Error Value: White=0.27 (precise) /Black=0.44} 1-0